fUST/lending_fUST_20250722
["ID","MTS","AMOUNT","RATE_DAILY","PERIOD"]
[373894210,1753140658445,-460.0,0.00019236,2]
[373894211,1753140658455,-460.0,0.00019236,2]
[373894212,1753140658466,-460.0,0.00019236,2]
[373894213,1753140658476,-460.0,0.00019236,2]
[373894214,1753140658487,-460.0,0.00019236,2]
[373894215,1753140658497,-681.98,0.00019236,2]
[373894216,1753140658573,-1019.82,0.00019236,2]
[373894217,1753140658584,-1245.38,0.00019236,2]
[373894218,1753140658593,-460.0,0.00019236,2]
[373894219,1753140658603,-700.42,0.00019236,2]
[373894220,1753140658612,-681.52,0.00019236,2]
[373894221,1753140658621,-519.27,0.00019236,2]
[373894222,1753140658630,-460.0,0.00019236,2]
[373894223,1753140658639,-460.0,0.00019237,2]
[373894224,1753140658648,-151.0,0.00019238,2]
[373894225,1753140658668,-151.0,0.00019238,2]
[373894226,1753140658681,-191.739403,0.00019238,2]
[373894227,1753140658692,-191.739403,0.00019238,2]
[373894228,1753140658702,-1750.53,0.00019238,2]
[373894229,1753140658712,-1045.06,0.00019238,2]
[373894230,1753140658723,-460.0,0.00019238,2]
[373894231,1753140658734,-1642.26,0.00019238,2]
[373894232,1753140658744,-151.0,0.00019239,2]
[373894233,1753140658754,-1282.822924,0.00019239,2]
[373894234,1753140658765,-201.605874,0.00019239,2]
[373894235,1753140658775,-151.0,0.00019239,2]
[373894236,1753140658785,-460.0,0.00019239,2]
[373894237,1753140658795,-460.0,0.00019239,2]
[373894238,1753140658807,-460.0,0.00019239,2]
[373894239,1753140658816,-6853.84,0.00019239,2]
[373894240,1753140658826,-1820.72,0.00019239,2]
[373894241,1753140658837,-460.0,0.00019239,2]
[373894242,1753140658847,-2086.57,0.00019239,2]
[373894243,1753140658857,-151.0,0.0001924,2]
[373894244,1753140658868,-3241.4,0.0001924,2]
[373894245,1753140658878,-611.95,0.0001924,2]
[373894246,1753140658889,-151.0,0.00019242,2]
[373894247,1753140658899,-151.0,0.00019242,2]
[373894248,1753140658911,-151.0,0.00019242,2]
[373894249,1753140658922,-151.0,0.00019242,2]
[373894250,1753140658932,-151.0,0.00019242,2]
[373894251,1753140658942,-151.0,0.00019242,2]
[373894252,1753140658952,-258.832452,0.00019242,2]
[373894253,1753140658963,-258.832452,0.00019242,2]
[373894254,1753140658972,-151.0,0.00019242,2]
[373894255,1753140658982,-228.233443,0.00019242,2]
[373894256,1753140658992,-228.233443,0.00019242,2]
[373894257,1753140659002,-1986.06,0.00019242,2]
[373894258,1753140659012,-460.0,0.00019242,2]
[373894259,1753140659022,-460.0,0.00019242,2]
[373894260,1753140659032,-2373.76,0.00019254,2]
[373894261,1753140659042,-1158.85,0.00019254,2]
[373894262,1753140659052,-150.0,0.00019259,2]
[373894263,1753140659062,-186.032,0.0001926,2]
[373894264,1753140659072,-186.032,0.0001926,2]
[373894265,1753140659081,-151.0,0.0001926,2]
[373894266,1753140659091,-151.0,0.0001926,2]
[373894267,1753140659101,-151.0,0.00019261,2]
[373894268,1753140659110,-151.0,0.00019261,2]
[373894269,1753140659121,-151.0,0.00019262,2]
[373894270,1753140659130,-151.0,0.00019262,2]
[373894271,1753140659140,-1172.0,0.00019264,2]
[373894272,1753140659149,-500.0,0.00019264,2]
[373894273,1753140659160,-866.0,0.00019264,2]
[373894274,1753140659170,-151.0,0.00019264,2]
[373894275,1753140659180,-151.0,0.00019264,2]
[373894276,1753140659190,-151.0,0.00019264,2]
[373894277,1753140659200,-151.0,0.00019264,2]
[373894278,1753140659210,-156.933266,0.00019265,2]
[373894279,1753140659219,-156.933266,0.00019265,2]
[373894280,1753140659229,-151.0,0.00019265,2]
[373894281,1753140659239,-859.0,0.0001928,2]
[373894282,1753140659248,-859.0,0.00019297,2]
[373894283,1753140659258,-151.0,0.000193,2]
[373894284,1753140659271,-1282.822924,0.00019314,2]
[373894285,1753140659281,-151.0,0.00019314,2]
[373894286,1753140659290,-151.0,0.00019314,2]
[373894287,1753140659300,-200.0,0.00019328,2]
[373894288,1753140659310,-151.0,0.00019329,2]
[373894289,1753140659320,-151.0,0.00019329,2]
[373894290,1753140659330,-194.761355,0.00019329,2]
[373894291,1753140659340,-194.761355,0.00019329,2]
[373894292,1753140659350,-151.0,0.00019329,2]
[373894293,1753140659359,-151.0,0.00019329,2]
[373894294,1753140659369,-151.0,0.00019329,2]
[373894295,1753140659379,-151.0,0.00019329,2]
[373894296,1753140659388,-151.0,0.00019329,2]
[373894297,1753140659398,-151.0,0.00019329,2]
[373894298,1753140659410,-151.0,0.00019329,2]
[373894299,1753140659420,-151.0,0.00019329,2]
[373894300,1753140659431,-168.883588,0.00019329,2]
[373894301,1753140659440,-267.746394,0.00019329,2]
[373894302,1753140659450,-186.032,0.00019329,2]
[373894303,1753140659460,-186.032,0.00019329,2]
[373894304,1753140659469,-1282.822932,0.00019329,2]
[373894305,1753140659479,-151.0,0.00019329,2]
[373894306,1753140659488,-151.0,0.00019329,2]
[373894307,1753140659498,-151.0,0.00019329,2]
[373894308,1753140659507,-151.0,0.00019329,2]
[373894309,1753140659517,-151.0,0.00019329,2]
[373894310,1753140659527,-151.0,0.00019329,2]
[373894311,1753140659536,-247.009665,0.00019329,2]
[373894312,1753140659546,-247.009665,0.00019329,2]
[373894313,1753140659556,-151.0,0.00019329,2]
[373894314,1753140659565,-151.0,0.00019329,2]
[373894315,1753140659575,-229.937196,0.00019329,2]
[373894316,1753140659584,-229.937196,0.00019329,2]
[373894317,1753140659593,-151.0,0.00019329,2]
[373894318,1753140659603,-151.0,0.00019329,2]
[373894319,1753140659612,-151.0,0.00019329,2]
[373894320,1753140659622,-258.832452,0.00019329,2]
[373894321,1753140659632,-258.832452,0.00019329,2]
[373894322,1753140659642,-315.387487,0.00019329,2]
[373894323,1753140659651,-315.387487,0.00019329,2]
[373894324,1753140659663,-151.0,0.00019329,2]
[373894325,1753140659672,-151.0,0.00019329,2]
[373894326,1753140659682,-228.233443,0.00019329,2]
[373894327,1753140659692,-228.233443,0.00019329,2]
[373894328,1753140659701,-191.739403,0.00019329,2]
[373894329,1753140659711,-191.739403,0.00019329,2]
[373894330,1753140659721,-158.405763,0.00019329,2]
[373894331,1753140659731,-158.405763,0.00019329,2]
[373894332,1753140659745,-151.0,0.00019329,2]
[373894333,1753140659755,-151.0,0.00019329,2]
[373894334,1753140659764,-151.0,0.00019329,2]
[373894335,1753140659774,-151.0,0.00019329,2]
[373894336,1753140659784,-73495.08163584,0.00019329,2]
[373894337,1753140659793,-900.0,0.00019331,2]
[373894338,1753140659803,-254.317335,0.00019338,2]
[373894339,1753140659814,-859.0,0.00019341,2]
[373894340,1753140659824,-8389.27005442,0.00019348,2]
[373894341,1753140659834,-500.0,0.00019373,2]
[373894342,1753140659843,-500.0,0.00019373,2]
[373894343,1753140659852,-500.0,0.00019373,2]
[373894344,1753140659862,-500.0,0.00019373,2]
[373894345,1753140659872,-158.5318405,0.00019373,2]
[373894346,1753140659882,-571.5438083,0.00019373,2]
[373894347,1753140659891,-156.933266,0.00019373,2]
[373894348,1753140659901,-156.933266,0.00019373,2]
[373894349,1753140659912,-420.0,0.00019389,2]
[373894350,1753140659921,-223.0315306,0.00019394,2]
[373894351,1753140659931,-460.0,0.0001941,2]
[373894352,1753140659940,-460.0,0.00019411,2]
[373894353,1753140659950,-460.0,0.00019411,2]
[373894354,1753140659960,-555.00201029,0.00019411,2]
[373894355,1753140659969,-460.0,0.00019411,2]
[373894356,1753140659979,-460.0,0.00019411,2]
[373894357,1753140659988,-460.0,0.00019411,2]
[373894358,1753140659998,-460.0,0.00019411,2]
[373894359,1753140660007,-460.0,0.00019411,2]
[373894360,1753140660017,-460.0,0.00019411,2]
[373894361,1753140660027,-460.0,0.00019411,2]
[373894362,1753140660037,-460.0,0.00019411,2]
[373894363,1753140660048,-3416.98,0.00019411,2]
[373894364,1753140660058,-460.0,0.00019411,2]
[373894365,1753140660068,-460.0,0.00019411,2]
[373894366,1753140660078,-460.0,0.00019411,2]
[373894367,1753140660088,-460.0,0.00019411,2]
[373894368,1753140660097,-460.0,0.00019411,2]
[373894369,1753140660107,-661.93,0.00019411,2]
[373894370,1753140660117,-460.0,0.00019411,2]
[373894371,1753140660126,-477.47,0.00019411,2]
[373894372,1753140660136,-151.0,0.00019411,2]
[373894373,1753140660146,-3942.78,0.00019411,2]
[373894374,1753140660156,-460.0,0.00019411,2]
[373894375,1753140660166,-1045.76,0.00019411,2]
[373894376,1753140660177,-460.0,0.00019411,2]
[373894377,1753140660187,-615.08,0.00019411,2]
[373894378,1753140660197,-863.37,0.00019411,2]
[373894379,1753140660208,-3770.82,0.00019411,2]
[373894380,1753140660218,-819.49,0.00019411,2]
[373894381,1753140660228,-460.0,0.00019411,2]
[373894382,1753140660238,-460.0,0.00019411,2]
[373894383,1753140660248,-460.0,0.00019411,2]
[373894384,1753140660259,-460.0,0.00019411,2]
[373894385,1753140660274,-480.36,0.00019411,2]
[373894386,1753140660284,-2179.8,0.00019411,2]
[373894387,1753140660295,-460.0,0.00019411,2]
[373894388,1753140660305,-508.61,0.00019411,2]
[373894389,1753140660318,-484.85,0.00019411,2]
[373894390,1753140660328,-1540.02,0.00019411,2]
[373894391,1753140660339,-568.51,0.00019411,2]
[373894392,1753140660349,-6763.12,0.00019411,2]
[373894393,1753140660359,-747.93,0.00019411,2]
[373894394,1753140660369,-908.02,0.00019411,2]
[373894395,1753140660379,-2563.4,0.00019411,2]
[373894396,1753140660391,-460.0,0.00019411,2]
[373894397,1753140660401,-460.0,0.00019411,2]
[373894398,1753140660412,-460.0,0.00019411,2]
[373894399,1753140660421,-632.45,0.00019411,2]
[373894400,1753140660431,-460.0,0.00019411,2]
[373894401,1753140660441,-460.0,0.00019411,2]
[373894402,1753140660451,-460.0,0.00019411,2]
[373894403,1753140660461,-508.59,0.00019411,2]
[373894404,1753140660472,-999.79,0.00019411,2]
[373894405,1753140660482,-460.0,0.00019412,2]
[373894406,1753140660492,-891.32,0.00019412,2]
[373894407,1753140660502,-460.0,0.00019412,2]
[373894408,1753140660511,-465.57713555,0.00019412,2]
[373894409,1753140660522,-460.0,0.00019412,2]
[373894410,1753140660531,-460.0,0.00019412,2]
[373894411,1753140660541,-460.0,0.00019412,2]
[373894412,1753140660551,-477.98,0.00019412,2]
[373894413,1753140660561,-460.0,0.00019412,2]
[373894414,1753140660571,-460.0,0.00019412,2]
[373894415,1753140660581,-460.0,0.00019412,2]
[373894416,1753140660591,-460.0,0.00019412,2]
[373894417,1753140660602,-1337.23,0.00019412,2]
[373894418,1753140660612,-460.0,0.00019412,2]
[373894419,1753140660621,-460.0,0.00019412,2]
[373894420,1753140660631,-460.0,0.00019412,2]
[373894421,1753140660641,-350.09,0.00019412,2]
[373894422,1753140660650,-460.0,0.00019412,2]
[373894423,1753140660661,-460.0,0.00019412,2]
[373894424,1753140660671,-460.0,0.00019412,2]
[373894425,1753140660681,-460.0,0.00019412,2]
[373894426,1753140660691,-859.0,0.00019441,2]
[373894427,1753140660701,-151.0,0.00019446,2]
[373894428,1753140660710,-489.52497536,0.00019448,2]
[373894429,1753140660720,-151.0,0.00019452,2]
[373894430,1753140660846,-151.0,0.00019452,2]
[373894431,1753140660857,-1500.0,0.00019458,2]
[373894432,1753140660867,-229.937196,0.00019481,2]
[373894433,1753140660877,-229.937196,0.00019481,2]
[373894434,1753140660886,-5888.0,0.00019481,2]
[373894435,1753140660897,-1680.0,0.00019485,2]
[373894436,1753140660906,-151.0,0.000195,2]
[373894437,1753140660918,-1229.37779905,0.000195,2]
[373894438,1753140660927,-460.0,0.0001951,2]
[373894439,1753140660938,-460.0,0.0001951,2]
[373894440,1753140660948,-460.0,0.0001951,2]
[373894441,1753140660957,-460.0,0.0001951,2]
[373894442,1753140660967,-460.0,0.0001951,2]
[373894443,1753140660977,-460.0,0.0001951,2]
[373894444,1753140660987,-460.0,0.0001951,2]
[373894445,1753140660996,-460.0,0.0001951,2]
[373894446,1753140661006,-460.0,0.0001951,2]
[373894447,1753140661016,-460.0,0.0001951,2]
[373894448,1753140661025,-460.0,0.0001951,2]
[373894449,1753140661035,-460.0,0.0001951,2]
[373894450,1753140661045,-475.17,0.0001951,2]
[373894451,1753140661055,-444.56,0.0001951,2]
[373894452,1753140661064,-608.05,0.0001951,2]
[373894453,1753140661075,-714.49,0.0001951,2]
[373894454,1753140661086,-460.0,0.0001951,2]
[373894455,1753140661097,-460.0,0.0001951,2]
[373894456,1753140661107,-460.0,0.0001951,2]
[373894457,1753140661116,-460.0,0.0001951,2]
[373894458,1753140661126,-473.15,0.0001951,2]
[373894459,1753140661136,-995.06,0.0001951,2]
[373894460,1753140661146,-460.0,0.0001951,2]
[373894461,1753140661155,-460.0,0.0001951,2]
[373894462,1753140661167,-460.0,0.0001951,2]
[373894463,1753140661176,-1002.52,0.0001951,2]
[373894464,1753140661186,-904.47,0.0001951,2]
[373894465,1753140661195,-842.93,0.0001951,2]
[373894466,1753140661205,-1466.53,0.0001951,2]
[373894467,1753140661215,-460.0,0.0001951,2]
[373894468,1753140661224,-460.0,0.0001951,2]
[373894469,1753140661233,-460.0,0.0001951,2]
[373894470,1753140661243,-460.0,0.0001951,2]
[373894471,1753140661252,-460.0,0.0001951,2]
[373894472,1753140661262,-460.0,0.0001951,2]
[373894473,1753140661286,-460.0,0.0001951,2]
[373894474,1753140661299,-681.98,0.0001951,2]
[373894475,1753140661310,-1019.82,0.0001951,2]
[373894476,1753140661321,-1245.38,0.0001951,2]
[373894477,1753140661331,-460.0,0.0001951,2]
[373894478,1753140661341,-700.42,0.0001951,2]
[373894479,1753140661352,-681.52,0.0001951,2]
[373894480,1753140661362,-519.27,0.0001951,2]
[373894481,1753140661372,-460.0,0.0001951,2]
[373894482,1753140661382,-460.0,0.00019511,2]
[373894483,1753140661392,-293.224357,0.00019512,2]
[373894484,1753140661402,-151.0,0.00019512,2]
[373894485,1753140661413,-151.0,0.00019512,2]
[373894486,1753140661423,-151.0,0.00019512,2]
[373894487,1753140661434,-151.0,0.00019512,2]
[373894488,1753140661444,-151.0,0.00019512,2]
[373894489,1753140661455,-151.0,0.00019512,2]
[373894490,1753140661466,-151.0,0.00019512,2]
[373894491,1753140661477,-247.009665,0.00019512,2]
[373894492,1753140661488,-247.009665,0.00019512,2]
[373894493,1753140661499,-151.0,0.00019512,2]
[373894494,1753140661509,-151.0,0.00019512,2]
[373894495,1753140661520,-1750.53,0.00019512,2]
[373894496,1753140661531,-1045.06,0.00019512,2]
[373894497,1753140661541,-151.0,0.00019512,2]
[373894498,1753140661552,-460.0,0.00019512,2]
[373894499,1753140661564,-1642.26,0.00019512,2]
[373894500,1753140661575,-460.0,0.00019513,2]
[373894501,1753140661585,-460.0,0.00019513,2]
[373894502,1753140661597,-460.0,0.00019513,2]
[373894503,1753140661607,-191.739403,0.00019513,2]
[373894504,1753140661617,-191.739403,0.00019513,2]
[373894505,1753140661627,-6853.84,0.00019513,2]
[373894506,1753140661637,-1820.72,0.00019513,2]
[373894507,1753140661647,-460.0,0.00019513,2]
[373894508,1753140661659,-2086.57,0.00019513,2]
[373894509,1753140661669,-173.437322,0.00019514,2]
[373894510,1753140661678,-3241.4,0.00019514,2]
[373894511,1753140661689,-611.95,0.00019514,2]
[373894512,1753140661699,-151.0,0.00019516,2]
[373894513,1753140661710,-151.0,0.00019516,2]
[373894514,1753140661720,-315.387487,0.00019516,2]
[373894515,1753140661731,-315.387487,0.00019516,2]
[373894516,1753140661741,-158.405763,0.00019516,2]
[373894517,1753140661751,-1986.06,0.00019516,2]
[373894518,1753140661761,-158.405763,0.00019516,2]
[373894519,1753140661771,-460.0,0.00019516,2]
[373894520,1753140661781,-460.0,0.00019516,2]
[373894521,1753140661791,-1000.0,0.00019516,2]
[373894522,1753140661801,-151.0,0.00019521,2]
[373894523,1753140661810,-151.0,0.00019521,2]
[373894524,1753140661820,-258.832452,0.00019521,2]
[373894525,1753140661830,-258.832452,0.00019521,2]
[373894526,1753140661840,-151.0,0.00019521,2]
[373894527,1753140661850,-228.233443,0.00019521,2]
[373894528,1753140661860,-228.233443,0.00019521,2]
[373894529,1753140661870,-2373.76,0.00019528,2]
[373894530,1753140661880,-1158.85,0.00019528,2]
[373894531,1753140661890,-151.0,0.00019529,2]
[373894532,1753140661900,-151.0,0.00019529,2]
[373894533,1753140661911,-151.0,0.00019529,2]
[373894534,1753140661926,-1172.0,0.00019538,2]
[373894535,1753140661936,-500.0,0.00019538,2]
[373894536,1753140661946,-866.0,0.00019538,2]
[373894537,1753140661956,-151.0,0.00019538,2]
[373894538,1753140661967,-151.0,0.00019538,2]
[373894539,1753140661976,-151.0,0.00019538,2]
[373894540,1753140661988,-180.0,0.00019538,2]
[373894541,1753140661998,-151.0,0.00019539,2]
[373894542,1753140662008,-158.503752,0.00019539,2]
[373894543,1753140662018,-158.503752,0.00019539,2]
[373894544,1753140662028,-156.933266,0.00019574,2]
[373894545,1753140662038,-156.933266,0.00019574,2]
[373894546,1753140662049,-508.97583114,0.0001958,2]
[373894547,1753140662059,-1500.0,0.0001958,2]
[373894548,1753140662068,-1500.0,0.0001958,2]
[373894549,1753140662078,-1005.50054643,0.0001958,2]
[373894550,1753140662088,-1500.0,0.0001958,2]
[373894551,1753140662098,-1500.0,0.0001958,2]
[373894552,1753140662108,-1500.0,0.0001958,2]
[373894553,1753140662118,-582.41468936,0.00019582,2]
[373894554,1753140662127,-1500.0,0.00019582,2]
[373894555,1753140662138,-8389.27005442,0.0001959,2]
[373894556,1753140662148,-194.761355,0.000196,2]
[373894557,1753140662158,-194.761355,0.000196,2]
[373894558,1753140662168,-203.992475,0.00019615,2]
[373894559,1753140662178,-203.992475,0.00019615,2]
[373894560,1753140662187,-151.0,0.00019615,2]
[373894561,1753140662197,-151.0,0.0001962,2]
[373894562,1753140662207,-203.992475,0.00019621,2]
[373894563,1753140662216,-203.992475,0.00019621,2]
[373894564,1753140662225,-156.933266,0.00019622,2]
[373894565,1753140662235,-156.933266,0.00019622,2]
[373894566,1753140662244,-280.091385,0.00019622,2]
[373894567,1753140662254,-151.0,0.00019622,2]
[373894568,1753140662266,-151.0,0.00019622,2]
[373894569,1753140662277,-151.0,0.00019622,2]
[373894570,1753140662287,-160.0,0.00019629,2]
[373894571,1753140662297,-153.0,0.00019644,2]
[373894572,1753140662307,-153.0,0.00019644,2]
[373894573,1753140662318,-153.0,0.00019644,2]
[373894574,1753140662327,-500.0,0.00019681,2]
[373894575,1753140662339,-326.69565911,0.00019684,2]
[373894576,1753140662349,-460.0,0.00019685,2]
[373894577,1753140662359,-460.0,0.00019685,2]
[373894578,1753140662370,-460.0,0.00019685,2]
[373894579,1753140662380,-460.0,0.00019685,2]
[373894580,1753140662392,-460.0,0.00019685,2]
[373894581,1753140662402,-460.0,0.00019685,2]
[373894582,1753140662414,-3416.98,0.00019685,2]
[373894583,1753140662424,-460.0,0.00019685,2]
[373894584,1753140662435,-460.0,0.00019685,2]
[373894585,1753140662446,-460.0,0.00019685,2]
[373894586,1753140662456,-460.0,0.00019685,2]
[373894587,1753140662466,-460.0,0.00019685,2]
[373894588,1753140662476,-661.93,0.00019685,2]
[373894589,1753140662486,-477.47,0.00019685,2]
[373894590,1753140662496,-3942.78,0.00019685,2]
[373894591,1753140662505,-460.0,0.00019685,2]
[373894592,1753140662516,-1045.76,0.00019685,2]
[373894593,1753140662525,-460.0,0.00019685,2]
[373894594,1753140662538,-615.08,0.00019685,2]
[373894595,1753140662548,-863.37,0.00019685,2]
[373894596,1753140662558,-3770.82,0.00019685,2]
[373894597,1753140662567,-819.49,0.00019685,2]
[373894598,1753140662578,-181.96,0.00019685,2]
[373894599,1753140662588,-583.78461303,0.00019685,2]
[373894600,1753140662597,-460.0,0.00019685,2]
[373894601,1753140662607,-460.0,0.00019685,2]
[373894602,1753140662617,-480.36,0.00019685,2]
[373894603,1753140662626,-2179.8,0.00019685,2]
[373894604,1753140662636,-460.0,0.00019685,2]
[373894605,1753140662646,-508.61,0.00019685,2]
[373894606,1753140662656,-484.85,0.00019685,2]
[373894607,1753140662667,-1540.02,0.00019685,2]
[373894608,1753140662677,-568.51,0.00019685,2]
[373894609,1753140662687,-6763.12,0.00019685,2]
[373894610,1753140662697,-747.93,0.00019685,2]
[373894611,1753140662707,-908.02,0.00019685,2]
[373894612,1753140662717,-2563.4,0.00019685,2]
[373894613,1753140662727,-460.0,0.00019685,2]
[373894614,1753140662737,-460.0,0.00019685,2]
[373894615,1753140662747,-460.0,0.00019685,2]
[373894616,1753140662756,-632.45,0.00019685,2]
[373894617,1753140662766,-460.0,0.00019685,2]
[373894618,1753140662776,-460.0,0.00019685,2]
[373894619,1753140662786,-460.0,0.00019685,2]
[373894620,1753140662796,-508.59,0.00019685,2]
[373894621,1753140662805,-999.79,0.00019685,2]
[373894622,1753140662815,-460.0,0.00019686,2]
[373894623,1753140662825,-891.32,0.00019686,2]
[373894624,1753140662834,-460.0,0.00019686,2]
[373894625,1753140662843,-460.0,0.00019686,2]
[373894626,1753140662853,-460.0,0.00019686,2]
[373894627,1753140662863,-580.75,0.00019686,2]
[373894628,1753140662872,-477.98,0.00019686,2]
[373894629,1753140662882,-460.0,0.00019686,2]
[373894630,1753140662891,-189.64200099,0.00019686,2]
[373894631,1753140662901,-460.0,0.00019686,2]
[373894632,1753140662911,-1337.23,0.00019686,2]
[373894633,1753140662920,-460.0,0.00019686,2]
[373894634,1753140662929,-285.57859369,0.00019686,2]
[373894635,1753140662939,-460.0,0.00019686,2]
[373894636,1753140662948,-460.0,0.00019686,2]
[373894637,1753140662958,-460.0,0.00019686,2]
[373894638,1753140662968,-460.0,0.00019686,2]
[373894639,1753140662979,-460.0,0.00019686,2]
[373894640,1753140662988,-2156.0,0.00019689,2]
[373894641,1753140662998,-968.0,0.00019689,2]
[373894642,1753140663008,-469.104,0.00019689,2]
[373894643,1753140663018,-32741.13205362,0.0001969,2]
[373894644,1753140663027,-151.0,0.0001969,2]
[373894645,1753140663037,-194.761355,0.0001969,2]
[373894646,1753140663047,-194.761355,0.0001969,2]
[373894647,1753140663057,-151.0,0.0001969,2]
[373894648,1753140663067,-151.0,0.0001969,2]
[373894649,1753140663077,-151.0,0.0001969,2]
[373894650,1753140663087,-151.0,0.0001969,2]
[373894651,1753140663097,-151.0,0.0001969,2]
[373894652,1753140663107,-247.009665,0.0001969,2]
[373894653,1753140663117,-247.009665,0.0001969,2]
[373894654,1753140663127,-229.937196,0.0001969,2]
[373894655,1753140663137,-229.937196,0.0001969,2]
[373894656,1753140663147,-151.0,0.0001969,2]
[373894657,1753140663156,-151.0,0.0001969,2]
[373894658,1753140663166,-191.739403,0.0001969,2]
[373894659,1753140663177,-191.739401,0.0001969,2]
[373894660,1753140663187,-151.0,0.000197,2]
[373894661,1753140663196,-504.01872942,0.00019721,2]
[373894662,1753140663206,-500.78111544,0.00019721,2]
[373894663,1753140663217,-1000.0,0.00019721,2]
[373894664,1753140663227,-300.17482589,0.00019721,2]
[373894665,1753140663237,-176.13411078,0.00019721,2]
[373894666,1753140663247,-503.6987245,0.00019721,2]
[373894667,1753140663258,-1001.89040089,0.00019721,2]
[373894668,1753140663271,-217.7850597,0.00019721,2]
[373894669,1753140663282,-315.387487,0.00019721,2]
[373894670,1753140663292,-315.387487,0.00019721,2]
[373894671,1753140663302,-158.405763,0.00019721,2]
[373894672,1753140663312,-158.405763,0.00019721,2]
[373894673,1753140663322,-151.0,0.00019726,2]
[373894674,1753140663332,-247.96421555,0.00019726,2]
[373894675,1753140663342,-859.0,0.00019741,2]
[373894676,1753140663353,-460.0,0.00019784,2]
[373894677,1753140663363,-460.0,0.00019784,2]
[373894678,1753140663373,-460.0,0.00019784,2]
[373894679,1753140663382,-460.0,0.00019784,2]
[373894680,1753140663392,-460.0,0.00019784,2]
[373894681,1753140663402,-460.0,0.00019784,2]
[373894682,1753140663413,-460.0,0.00019784,2]
[373894683,1753140663423,-221.74639928,0.00019784,2]
[373894684,1753140663433,-460.0,0.00019784,2]
[373894685,1753140663442,-460.0,0.00019784,2]
[373894686,1753140663451,-377.53183557,0.00019784,2]
[373894687,1753140663596,-460.0,0.00019784,2]
[373894688,1753140663607,-475.17,0.00019784,2]
[373894689,1753140663618,-608.05,0.00019784,2]
[373894690,1753140663628,-714.49,0.00019784,2]
[373894691,1753140663638,-460.0,0.00019784,2]
[373894692,1753140663648,-460.0,0.00019784,2]
[373894693,1753140663658,-460.0,0.00019784,2]
[373894694,1753140663668,-460.0,0.00019784,2]
[373894695,1753140663678,-473.15,0.00019784,2]
[373894696,1753140663688,-995.06,0.00019784,2]
[373894697,1753140663698,-460.0,0.00019784,2]
[373894698,1753140663709,-460.0,0.00019784,2]
[373894699,1753140663719,-460.0,0.00019784,2]
[373894700,1753140663729,-1002.52,0.00019784,2]
[373894701,1753140663739,-904.47,0.00019784,2]
[373894702,1753140663750,-842.93,0.00019784,2]
[373894703,1753140663760,-1466.53,0.00019784,2]
[373894704,1753140663770,-460.0,0.00019784,2]
[373894705,1753140663780,-460.0,0.00019784,2]
[373894706,1753140663790,-460.0,0.00019784,2]
[373894707,1753140663800,-460.0,0.00019784,2]
[373894708,1753140663811,-460.0,0.00019784,2]
[373894709,1753140663821,-460.0,0.00019784,2]